bitfinex-derivatives/quotes_SOLF0:USTF0_20250428
["timestamp","ask_amount","ask_price","bid_price","bid_amount"]
[1745816735165,23.78,148.92,148.89,4.59916333]
[1745816735372,23.78,148.92,148.88,4.59916333]
[1745816735669,4.59916333,148.91,148.86,4.59916333]
[1745816735872,4.59916333,148.9,148.85,28.37916333]
[1745816736071,11.31326333,148.9,148.85,35.09486333]
[1745816736463,4.59916333,148.9,148.85,35.09486333]
[1745816736975,6.7143,148.89,148.86,6.7155]
[1745816743481,6.7148,148.88,148.85,35.09496333]
[1745816743669,4.59916333,148.9,148.85,4.59916333]
[1745816744078,23.78,148.92,148.88,4.59916333]
[1745816744276,23.78,148.92,148.89,4.59916333]
[1745816744878,23.78,148.92,148.89,11.31306333]
[1745816745580,23.78,148.92,148.9,4.59916333]
[1745816745877,23.78,148.92,148.9,11.31286333]
[1745816746477,23.78,148.95,148.91,4.59916333]
[1745816746672,23.78,148.95,148.92,4.59916333]
[1745816746870,23.78,148.95,148.92,11.31176333]
[1745816747070,23.78,148.95,148.93,4.59916333]
[1745816747278,518.76956333,148.98,148.93,4.59916333]
[1745816747579,512.05916333,148.98,148.93,11.31136333]
[1745816747780,4.59916333,148.97,148.93,6.7122]
[1745816748078,6.7111,148.96,148.92,11.31186333]
[1745816748470,4.59916333,148.95,148.9,28.37916333]
[1745816748672,6.7119,148.94,148.9,35.09256333]
[1745816749481,6.7119,148.94,148.91,4.59916333]
[1745816750980,6.7116,148.95,148.91,11.31226333]
[1745816751784,6.712,148.94,148.91,11.31226333]
[1745816754989,6.712,148.94,148.91,4.59916333]
[1745816755390,6.7125,148.93,148.9,11.31276333]
[1745816757098,6.7128,148.92,148.87,23.78]
[1745816757394,4.59916333,148.94,148.89,4.59916333]
[1745816757594,6.7125,148.93,148.89,11.31296333]
[1745816759596,6.7125,148.93,148.9,6.7137]
[1745816760691,28.35916333,148.94,148.9,6.7137]
[1745816761598,28.35916333,148.94,148.91,6.7131]
[1745816761798,23.76,148.94,148.91,6.7131]
[1745816765103,23.76,148.94,148.91,11.31226333]
[1745816766704,23.76,148.94,148.92,6.7128]
[1745816766905,28.35916333,148.97,148.92,4.59916333]
[1745816767107,23.76,148.97,148.94,4.59916333]
[1745816767602,23.76,148.97,148.94,11.31096333]
[1745816769007,28.35916333,148.97,148.94,11.31096333]
[1745816769309,35.06976333,148.97,148.94,11.31096333]
[1745816770606,35.06976333,148.97,148.94,4.59916333]
[1745816771006,35.06976333,148.97,148.93,11.31136333]
[1745816771205,35.06976333,148.97,148.94,6.7119]
[1745816772110,35.06976333,148.97,148.93,11.31136333]
[1745816773504,35.06976333,148.97,148.94,6.7118]
[1745816774812,30.4706,148.97,148.94,6.7118]
[1745816775712,23.76,148.97,148.94,6.7118]
[1745816775914,23.76,148.97,148.94,11.31096333]
[1745816776211,28.35916333,149.0,148.95,4.59916333]
[1745816776406,28.35916333,149.0,148.91,23.76]
[1745816776407,23.76,149.0,148.96,4.59916333]
[1745816776614,28.35916333,149.03,148.98,4.59916333]
[1745816777213,6.7086,149.02,148.98,11.30906333]
[1745816777414,11.30776333,149.02,148.98,11.30906333]
[1745816777713,4.59916333,149.02,148.98,4.59916333]
[1745816777914,4.59916333,149.02,148.97,4.59916333]
[1745816778211,4.59916333,149.01,148.97,4.59916333]
[1745816779314,11.30806333,149.01,148.97,11.30966333]
[1745816781113,6.7093,149.0,148.97,11.30966333]
[1745816781711,483.4,149.05,148.99,4.59916333]
[1745816781712,4.59916333,149.05,148.99,4.59916333]
[1745816781913,4.59916333,149.05,149.01,4.59916333]
[1745816782415,6.7075,149.04,149.01,4.59916333]
[1745816782717,6.7075,149.04,149.0,4.59916333]
[1745816783014,11.30666333,149.04,149.0,4.59916333]
[1745816784118,6.7079,149.03,149.0,4.59916333]
[1745816784417,6.7079,149.03,148.99,11.30866333]
[1745816785121,4.59916333,149.02,148.98,4.59916333]
[1745816785317,4.59916333,149.02,148.97,6.53896333]
[1745816785516,4.59916333,149.0,148.96,2.0468]
[1745816785716,11.30886333,148.99,148.96,2.0468]
[1745816786016,4.59916333,148.98,148.94,4.59916333]
[1745816786516,4.59916333,148.98,148.94,11.31076333]
[1745816786725,4.59916333,148.96,148.91,4.59916333]
[1745816786919,4.59916333,148.93,148.9,2.009]
[1745816787113,4.59916333,148.92,148.88,373.53179589]
[1745816787612,11.31206333,148.92,148.88,380.24609589]
[1745816787822,6.7129,148.92,148.88,375.64693256]
[1745816788114,6.7125,148.93,148.89,6.7139]
[1745816789516,23.76,148.94,148.9,7.18184178]
[1745816789718,23.76,148.98,148.92,7.18184178]
[1745816789922,23.76,148.98,148.93,2.037]
[1745816790323,6.7098,148.99,148.93,2.037]
[1745816790621,6.7098,148.99,148.95,6.7112]
[1745816791829,6.7098,148.99,148.96,6.7109]
[1745816794930,6.7098,148.99,148.95,6.7113]
[1745816799233,6.7098,148.99,148.96,6.7109]
[1745816803030,6.7094,149.0,148.96,6.7109]
[1745816803837,37.65074178,149.01,148.93,9.21884178]
[1745816804135,23.76,149.01,148.95,7.18184178]
[1745816804532,23.76,149.01,148.97,7.18184178]
[1745816804838,23.76,149.04,148.97,7.18184178]
[1745816805039,6.7083,149.03,148.99,6.7094]
[1745816805537,6.7084,149.02,148.99,6.7094]
[1745816805741,6.7084,149.02,148.98,6.7099]
[1745816806542,6.7084,149.02,148.99,6.7096]
[1745816810241,23.76,149.04,148.98,6.71]
[1745816810442,23.76,149.04,148.96,1.9783]
[1745816810841,6.7083,149.02,148.98,6.7098]
[1745816811743,6.7083,149.02,148.99,6.7095]
[1745816813744,6.7083,149.02,148.98,6.7099]
[1745816815545,6.7083,149.02,148.99,6.7096]
[1745816822752,23.76,149.04,148.99,6.7096]
[1745816822960,23.76,149.04,149.01,6.7087]
[1745816823254,23.76,149.04,148.98,30.94184178]
[1745816823559,23.76,149.04,148.98,32.85864178]
[1745816824156,23.76,149.04,148.98,25.6768]
[1745816824559,6.7086,149.02,148.99,6.7096]
[1745816825770,6.7086,149.02,148.98,8.6267]
[1745816826562,6.7081,149.03,148.99,6.7095]
[1745816826762,23.76,149.04,148.98,9.09864178]
[1745816827861,23.76,149.04,149.01,6.7085]
[1745816828860,6.7067,149.06,149.01,6.7085]
[1745816829061,30.92184178,149.07,149.02,6.7083]
[1745816829461,37.62814178,149.07,149.02,6.7083]
[1745816829662,30.92184178,149.07,149.02,6.7083]
[1745816830765,37.62804178,149.07,149.02,6.7083]
[1745816833066,37.62804178,149.07,149.03,6.7078]
[1745816834168,23.74,149.07,149.02,7.18184178]
[1745816834358,23.74,149.1,149.02,7.18184178]
[1745816834563,6.7055,149.09,149.05,6.7066]
[1745816835867,30.4449,149.1,149.05,6.7066]
[1745816837069,30.4449,149.1,149.06,6.7065]
[1745816837669,30.4449,149.1,149.05,6.7068]
[1745816838770,6.7052,149.09,149.05,6.7068]
[1745816839068,13.88704178,149.09,149.05,6.7068]
[1745816839374,7.18184178,149.09,149.03,2.0701]
[1745816839871,13.88724178,149.09,149.05,6.7069]
[1745816840263,7.18184178,149.09,149.03,2.0701]
[1745816840468,30.445,149.1,149.05,6.7069]
[1745816841263,30.445,149.1,149.06,6.7065]
[1745816841965,6.7052,149.09,149.05,6.7068]
[1745816845873,30.4449,149.1,149.06,6.7065]
[1745816846873,23.74,149.1,149.04,7.18184178]
[1745816847072,506.86,149.13,149.04,7.18184178]
[1745816848073,6.7039,149.12,149.08,6.7054]
[1745816848271,7.18184178,149.14,149.04,7.18184178]
[1745816848468,32.5163,149.16,149.11,6.7039]
[1745816848664,23.74,149.16,149.1,7.18184178]
[1745816849074,23.74,149.16,149.13,6.7033]
[1745816849274,23.74,149.16,149.1,7.18184178]
[1745816849475,23.74,149.16,149.12,6.7035]
[1745816850077,23.74,149.16,149.1,7.18184178]
[1745816850377,30.92184178,149.19,149.1,7.18184178]
[1745816850578,23.74,149.19,149.12,7.18184178]
[1745816850780,23.74,149.19,149.14,6.7026]
[1745816850781,30.441,149.19,149.14,6.7026]
[1745816851080,23.74,149.19,149.12,7.18184178]
[1745816851274,30.92184178,149.19,149.1,7.18184178]
[1745816851678,6.7015,149.18,149.1,7.18184178]
[1745816853981,6.7015,149.18,149.13,6.7031]
[1745816854482,6.7015,149.18,149.14,6.7028]
[1745816854687,6.7016,149.17,149.1,7.18184178]
[1745816854981,30.92184178,149.19,149.1,7.18184178]
[1745816855177,6.7013,149.18,149.1,7.18184178]
[1745816856484,6.7013,149.18,149.14,6.7029]
[1745816857385,37.62264178,149.19,149.14,6.7029]
[1745816857791,30.4408,149.19,149.14,6.7029]
[1745816858385,6.7011,149.18,149.14,6.7029]
[1745816858888,30.4408,149.19,149.15,6.7024]
[1745816859787,30.4408,149.19,149.14,6.7028]
[1745816860690,6.7012,149.18,149.13,6.7032]
[1745816861490,6.7012,149.18,149.14,6.7029]
[1745816861890,30.4408,149.19,149.14,6.7029]
[1745816862490,6.7011,149.18,149.14,6.7029]
[1745816862992,23.74,149.19,149.14,6.7029]
[1745816863292,30.4408,149.19,149.15,6.7024]
[1745816866297,30.4408,149.19,149.1,7.18184178]
[1745816866489,30.4408,149.19,149.12,7.18184178]
[1745816866690,30.4408,149.19,149.12,30.90184178]
[1745816867091,23.74,149.19,149.16,6.702]
[1745816867290,23.74,149.19,149.14,7.18184178]
[1745816867495,23.74,149.19,149.12,30.90184178]
[1745816868694,23.74,149.19,149.16,6.7019]
[1745816869796,23.74,149.19,149.15,6.7024]
[1745816869994,23.74,149.19,149.12,30.90184178]
[1745816870193,23.74,149.19,149.12,23.72]
[1745816870387,7.18184178,149.18,149.1,7.18184178]
[1745816870592,6.7021,149.16,149.1,7.18184178]
[1745816870792,23.74,149.19,149.1,7.18184178]
[1745816870992,23.74,149.19,149.14,6.7026]
[1745816871195,30.4407,149.19,149.14,6.7026]
[1745816871397,30.4407,149.19,149.12,7.18184178]
[1745816871597,23.74,149.19,149.15,6.7021]
[1745816871794,23.74,149.19,149.14,7.18184178]
[1745816872299,23.74,149.19,149.15,6.7021]
[1745816873702,30.4407,149.19,149.15,6.7021]
[1745816873901,23.74,149.19,149.15,6.7021]
[1745816874499,30.4407,149.19,149.15,6.7021]
[1745816875404,23.74,149.19,149.15,6.7021]
[1745816876705,23.74,149.19,149.16,6.7018]
[1745816877805,23.74,149.19,149.14,9.17434178]
[1745816878014,6.6999,149.21,149.14,9.17434178]
[1745816878909,30.4195,149.22,149.14,9.17434178]
[1745816879112,30.4195,149.22,149.14,13.17564178]
[1745816879814,6.6999,149.21,149.16,6.7017]
[1745816880014,30.90184178,149.22,149.14,36.89564178]
[1745816880215,6.7005,149.2,149.14,36.89564178]
[1745816880413,30.90184178,149.22,149.16,6.702]
[1745816880812,6.7004,149.2,149.16,6.702]
[1745816882014,6.7007,149.19,149.15,6.7023]
[1745816882314,30.90184178,149.22,149.14,1.9925]
[1745816882615,30.90184178,149.22,149.14,8.695]
[1745816883408,7.18184178,149.2,149.15,6.7025]
[1745816883917,6.7009,149.19,149.15,6.7025]
[1745816887318,6.7009,149.19,149.14,8.6952]
[1745816888216,6.7012,149.18,149.14,8.6952]
[1745816888415,6.7012,149.18,149.15,6.7024]
[1745816888614,6.7012,149.18,149.14,1.9925]
[1745816889117,7.18184178,149.2,149.14,1.9925]
[1745816889318,30.90184178,149.22,149.14,1.9925]
[1745816889517,30.90184178,149.22,149.14,9.17434178]
[1745816889919,6.7005,149.2,149.16,6.7017]
[1745816892120,6.6999,149.21,149.17,6.7015]
[1745816892321,23.72,149.22,149.16,7.18184178]
[1745816893018,7.18184178,149.24,149.17,23.72]
[1745816893622,6.6996,149.22,149.18,6.7009]
[1745816898620,7.18184178,149.24,149.17,23.72]
[1745816898814,7.18184178,149.24,149.14,32.87434178]
[1745816899123,6.7002,149.21,149.14,32.87434178]
[1745816899313,6.7002,149.21,149.15,23.7]
[1745816900518,6.7002,149.21,149.17,6.7013]
[1745816901211,6.7002,149.21,149.18,6.701]
[1745816902622,6.6995,149.22,149.18,6.701]
[1745816906225,6.6995,149.22,149.18,6.701]
[1745816907527,6.6995,149.22,149.18,13.24060408]
[1745816908419,6.7003,149.2,149.14,1.9925]
[1745816908625,6.53960408,149.18,149.14,6.53960408]
[1745816908828,23.7,149.21,149.17,6.53960408]
[1745816909221,6.53960408,149.22,149.17,6.53960408]
[1745816909619,6.6996,149.22,149.19,6.53960408]
[1745816910527,6.6998,149.21,149.19,6.53960408]
[1745816913225,6.7002,149.2,149.19,6.53960408]
[1745816915830,6.6999,149.21,149.19,6.53960408]
[1745816917832,6.6994,149.22,149.19,13.24020408]
[1745816918033,23.7,149.24,149.21,6.53960408]
[1745816918431,6.6989,149.23,149.21,6.53960408]
[1745816918631,6.6989,149.23,149.2,13.23970408]
[1745816918828,23.7,149.24,149.2,13.23970408]
[1745816919128,30.3987,149.24,149.2,13.23970408]
[1745816919329,6.53960408,149.25,149.21,6.6997]
[1745816919734,13.23790408,149.25,149.21,6.6997]
[1745816920329,6.53960408,149.26,149.22,6.53960408]
[1745816920833,6.53960408,149.26,149.23,6.6988]
[1745816921229,36.93670408,149.27,149.23,6.6988]
[1745816921532,23.7,149.27,149.24,6.6983]
[1745816921731,13.23640408,149.28,149.24,6.6983]
[1745816921936,13.23640408,149.28,149.23,6.53960408]
[1745816922235,13.23670408,149.27,149.23,6.53960408]
[1745816922634,6.6971,149.27,149.23,6.53960408]
[1745816922836,6.53960408,149.28,149.23,6.53960408]
[1745816923026,6.53960408,149.27,149.23,6.53960408]
[1745816923435,13.23670408,149.27,149.23,13.23820408]
[1745816924034,13.23670408,149.27,149.23,6.6986]
[1745816924537,6.53960408,149.26,149.21,2.0852]
[1745816924734,6.53960408,149.25,149.21,2.0852]
[1745816925438,6.6989,149.23,149.21,2.0852]
[1745816925933,6.6989,149.23,149.2,6.53960408]
[1745816926137,6.6993,149.22,149.19,30.23960408]
[1745816926337,6.53960408,149.24,149.19,30.23960408]
[1745816926928,6.6993,149.23,149.19,36.94030408]
[1745816927537,6.6995,149.22,149.19,23.7]
[1745816928337,6.6995,149.22,149.18,6.701]
[1745816928539,6.6995,149.22,149.18,30.401]
[1745816929637,6.6995,149.22,149.19,6.7007]
[1745816930135,6.6995,149.22,149.18,30.401]
[1745816931945,6.6995,149.22,149.19,6.7006]
[1745816932139,6.6999,149.21,149.18,23.7]
[1745816932344,23.7,149.26,149.19,10.21702243]
[1745816932642,6.6981,149.25,149.21,6.6997]
[1745816932843,33.91702243,149.26,149.18,23.7]
[1745816933136,6.6986,149.24,149.18,23.7]
[1745816933339,6.6986,149.24,149.2,6.7002]
[1745816935448,6.6986,149.24,149.21,6.6998]
[1745816939249,6.699,149.23,149.2,6.7002]
[1745816939450,6.699,149.23,149.18,23.7]
[1745816939850,6.699,149.23,149.19,6.7005]
[1745816940151,6.6993,149.22,149.19,6.7005]
[1745816940448,10.21502598,149.23,149.17,1.9285]
[1745816940745,10.21502598,149.21,149.13,23.7]
[1745816940952,10.21502598,149.21,149.14,6.7027]
[1745816940953,6.7012,149.18,149.14,6.7027]
[1745816941552,6.7012,149.18,149.15,6.7024]
[1745816943149,6.7007,149.19,149.15,6.7024]
[1745816943350,23.7,149.21,149.14,10.21502598]
[1745816943750,30.4001,149.21,149.16,6.702]
[1745816944256,30.4001,149.21,149.17,6.7015]
[1745816945855,23.7,149.21,149.16,6.7019]
[1745816946058,23.7,149.21,149.14,10.21994915]
[1745816946558,30.3998,149.21,149.14,10.21994915]
[1745816946758,23.7,149.21,149.16,10.21994915]
[1745816947060,6.6992,149.23,149.18,6.7007]
[1745816947255,23.7,149.24,149.17,29.5772]
[1745816947558,6.6999,149.21,149.17,36.2786]
[1745816948058,6.6999,149.21,149.17,5.8772]
[1745816948664,6.7002,149.2,149.17,5.8772]
[1745816948865,6.7002,149.2,149.17,1.9445]
[1745816952570,6.7007,149.19,149.17,1.9445]
[1745816953270,6.7004,149.2,149.17,1.9445]
[1745816953663,10.21994915,149.23,149.17,1.9445]
[1745816955468,6.54147268,149.2,149.17,1.9445]
[1745816956275,13.24197268,149.2,149.17,1.9445]
[1745816956869,6.7005,149.2,149.17,1.9445]
[1745816963877,6.54147268,149.2,149.15,13.24377268]
[1745816964078,30.24147268,149.2,149.15,6.54147268]
[1745816964378,6.54147268,149.19,149.14,30.24147268]
[1745816964675,6.54147268,149.19,149.14,36.94417268]
[1745816964879,23.7,149.2,149.12,1.954]
[1745816964880,6.54147268,149.17,149.12,8.49547268]
[1745816965176,6.54147268,149.16,149.12,8.49547268]
[1745816965379,6.7023,149.16,149.12,15.19897268]
[1745816965776,6.7023,149.16,149.13,6.7033]
[1745816966482,6.54147268,149.19,149.14,6.54147268]
[1745816966680,6.54147268,149.19,149.15,6.54147268]
[1745816966975,30.24147268,149.2,149.15,6.54147268]
[1745816967481,36.94197268,149.2,149.15,6.54147268]
[1745816968281,36.94197268,149.2,149.17,6.7016]
[1745816969481,30.4005,149.2,149.17,6.7016]
[1745816969983,23.7,149.2,149.17,6.7016]
[1745816970881,23.7,149.21,149.15,10.22174234]
[1745816971280,23.7,149.21,149.18,6.7009]
[1745816973388,30.3999,149.21,149.18,6.7009]
[1745816973788,23.7,149.21,149.15,10.22174234]
[1745816973986,23.7,149.21,149.12,1.954]
[1745816973987,10.22174234,149.2,149.12,1.954]
[1745816974188,10.22174234,149.18,149.12,1.954]
[1745816974386,23.7,149.17,149.12,8.6577]
[1745816975487,6.702,149.16,149.12,8.6577]
[1745816976888,6.7025,149.15,149.12,8.6577]
[1745816977187,23.7,149.17,149.13,6.7033]
[1745816978282,6.7022,149.16,149.13,6.7033]
[1745816986993,30.4017,149.17,149.13,6.7033]
[1745816987592,23.7,149.17,149.12,12.17574234]
[1745816987893,33.92174234,149.2,149.12,12.17574234]
[1745816988395,6.7009,149.19,149.15,6.7021]
[1745816988590,33.92174234,149.2,149.15,6.7021]
[1745816988794,6.7016,149.18,149.14,6.7027]
[1745816988990,33.92174234,149.2,149.14,6.7027]
[1745816989597,6.7014,149.18,149.14,6.7027]
[1745816990397,6.7014,149.18,149.15,6.7023]
[1745816990595,6.7014,149.18,149.12,12.17574234]
[1745816991195,6.7014,149.18,149.14,6.7028]
[1745816994899,6.7018,149.17,149.13,6.7032]
[1745816996701,6.7018,149.17,149.14,6.7029]
[1745816997100,33.92174234,149.2,149.12,1.954]
[1745816997494,33.92174234,149.2,149.12,8.6575]
[1745816997695,6.7022,149.16,149.12,8.6575]
[1745817000399,6.7025,149.15,149.12,8.6575]
[1745817000804,10.22174234,149.18,149.12,1.954]
[1745817001005,6.7026,149.15,149.12,1.954]
[1745817001304,10.22174234,149.18,149.12,1.954]
[1745817001504,6.7024,149.16,149.12,1.954]
[1745817003304,6.7024,149.16,149.13,6.7031]
[1745817003503,6.7024,149.16,149.13,13.24704013]
[1745817004110,13.24564013,149.17,149.13,13.24704013]
[1745817004306,30.24394013,149.21,149.16,6.54394013]
[1745817004505,30.24394013,149.21,149.17,6.54394013]
[1745817004704,6.54394013,149.19,149.15,6.54394013]
[1745817004906,6.54394013,149.19,149.14,30.24394013]
[1745817005209,13.24494013,149.19,149.15,6.7023]
[1745817005511,6.701,149.19,149.15,6.7023]
[1745817005810,33.92281026,149.21,149.15,6.7023]
[1745817006308,6.7011,149.18,149.15,6.7023]
[1745817006510,10.22281026,149.19,149.14,23.7]
[1745817006810,10.22281026,149.19,149.12,1.954]
[1745817007817,6.7013,149.18,149.14,6.7027]
[1745817009912,6.7016,149.17,149.14,6.7027]
[1745817010414,6.7016,149.17,149.13,6.7032]
[1745817011813,6.7023,149.16,149.12,8.6577]
[1745817015217,6.7023,149.16,149.13,6.7033]
[1745817016421,6.7018,149.17,149.13,6.7033]
[1745817016616,33.92281026,149.21,149.12,12.17681026]
[1745817016922,23.7,149.21,149.14,10.22281026]
[1745817017216,6.7004,149.2,149.14,10.22281026]
[1745817017617,6.7007,149.19,149.16,6.7018]
[1745817018817,6.7004,149.2,149.16,6.7018]
[1745817021118,40.62271026,149.21,149.17,6.7014]
[1745817026618,40.62271026,149.21,149.18,6.7011]
[1745817027121,23.7,149.21,149.18,6.7011]
[1745817029126,30.3998,149.21,149.18,6.7011]
[1745817029325,30.3998,149.21,149.17,6.7014]
[1745817032631,30.3998,149.21,149.18,6.701]
[1745817034033,30.3998,149.21,149.17,6.7014]
[1745817034429,30.3998,149.21,149.15,23.68]
[1745817035335,30.3998,149.21,149.17,6.7013]
[1745817036838,33.92281026,149.21,149.16,6.702]
[1745817037333,33.92281026,149.21,149.12,35.85681026]
[1745817037535,10.22281026,149.19,149.12,25.634]
[1745817038137,6.7015,149.18,149.14,6.7026]
[1745817038337,6.7015,149.18,149.12,25.634]
[1745817038834,6.7015,149.18,149.15,6.7022]
[1745817039638,16.92361026,149.19,149.16,6.7019]
[1745817039939,6.7008,149.19,149.16,6.7019]
[1745817040238,6.7004,149.2,149.17,6.7015]
[1745817041442,30.3998,149.21,149.18,6.7011]
[1745817041739,30.3998,149.21,149.14,10.22281026]
[1745817042141,6.7003,149.2,149.16,6.7017]
[1745817044139,23.7,149.21,149.12,25.634]
[1745817044340,23.7,149.21,149.16,10.22281026]
[1745817044541,23.7,149.21,149.17,2.0623]
[1745817044744,23.7,149.21,149.19,6.7003]
[1745817045047,6.6991,149.23,149.19,6.7003]
[1745817045943,30.3784,149.24,149.21,6.6997]
[1745817046245,23.68,149.24,149.21,6.6997]
[1745817046540,23.68,149.24,149.22,6.6992]
[1745817046743,23.68,149.24,149.18,10.22281026]
[1745817046944,516.44281026,149.27,149.18,10.22281026]
[1745817047847,6.698,149.25,149.18,10.22281026]
[1745817049046,6.6986,149.24,149.21,6.6994]
[1745817049240,10.22281026,149.25,149.17,6.0994]
[1745817049744,6.6992,149.23,149.19,6.7004]
[1745817050247,6.6992,149.23,149.2,6.7002]
[1745817052636,10.22281026,149.25,149.2,6.7002]
[1745817052637,6.6986,149.24,149.2,6.7002]
[1745817053647,6.6986,149.24,149.17,6.0994]
[1745817054747,6.6986,149.24,149.2,6.6999]
[1745817059254,33.90281026,149.23,149.17,6.0994]
[1745817059652,6.6996,149.22,149.18,6.7011]
[1745817059852,33.90281026,149.23,149.18,6.7011]
[1745817060453,6.6995,149.22,149.18,6.7011]
[1745817060655,33.90281026,149.23,149.18,6.7011]
[1745817060851,10.22281026,149.21,149.1,361.0]
[1745817061057,6.7012,149.18,149.12,23.68]
[1745817061656,40.60351026,149.19,149.12,23.68]
[1745817061852,33.90281026,149.19,149.12,23.68]
[1745817062051,6.7012,149.18,149.14,6.7029]
[1745817062251,23.68,149.19,149.12,23.68]
[1745817062448,23.68,149.22,149.15,10.22281026]
[1745817062752,23.68,149.22,149.17,10.22281026]
[1745817062948,492.76281026,149.27,149.19,10.22281026]
[1745817063251,6.6976,149.26,149.19,10.22281026]
[1745817063856,6.6976,149.26,149.22,6.6992]
[1745817064256,30.3772,149.27,149.19,10.22281026]
[1745817064554,23.68,149.27,149.19,10.22281026]
[1745817064856,6.6978,149.26,149.22,6.6992]
[1745817065455,23.68,149.27,149.21,6.6996]
[1745817066052,23.68,149.27,149.22,6.6992]
[1745817066256,23.68,149.27,149.19,10.22281026]
[1745817066554,30.3771,149.27,149.21,10.22281026]
[1745817066754,30.3771,149.27,149.22,1.9018]
[1745817067150,30.3771,149.27,149.23,6.6985]
[1745817069158,30.3771,149.27,149.24,6.6984]
[1745817069358,23.68,149.27,149.22,1.9018]
[1745817069758,23.68,149.27,149.22,8.6008]
[1745817070259,6.6977,149.26,149.22,8.6008]
[1745817070954,6.698,149.25,149.22,8.6008]
[1745817071160,23.68,149.27,149.22,8.6008]
[1745817071559,6.6978,149.26,149.22,8.6008]
[1745817072755,6.6978,149.26,149.22,6.699]
[1745817073261,6.6975,149.26,149.23,6.6985]
[1745817075462,10.22281026,149.26,149.2,25.6976]
[1745817075959,6.6987,149.24,149.2,32.3976]
[1745817076459,6.6987,149.24,149.2,25.6976]
[1745817077164,6.6981,149.25,149.21,6.6998]
[1745817077564,23.68,149.27,149.2,25.6976]
[1745817078265,30.3772,149.27,149.23,6.6985]
[1745817078965,6.6977,149.26,149.22,6.6992]
[1745817079765,6.698,149.25,149.22,6.6992]
[1745817079961,6.698,149.25,149.21,6.6996]
[1745817082171,6.698,149.25,149.22,6.6993]
[1745817083581,23.68,149.27,149.21,10.22281026]
[1745817084076,33.88281026,149.3,149.21,10.22281026]
[1745817084281,6.6968,149.28,149.25,6.6979]
[1745817084778,33.88281026,149.3,149.25,6.6979]
[1745817085079,6.6963,149.29,149.25,6.6979]
[1745817085474,6.6963,149.29,149.26,6.6975]
[1745817085674,23.66,149.3,149.23,10.22281026]
[1745817086079,30.3557,149.3,149.26,6.6973]
[1745817086677,23.66,149.3,149.23,10.22281026]
[1745817087078,12.15011026,149.32,149.23,10.22281026]
[1745817087379,23.66,149.31,149.23,10.22281026]
[1745817087979,6.696,149.3,149.26,6.6972]
[1745817088881,6.6962,149.29,149.25,6.6979]
[1745817089380,6.6967,149.28,149.25,6.6979]
[1745817090079,6.6963,149.29,149.25,6.6979]
[1745817090681,6.6963,149.29,149.26,6.6975]
[1745817092484,6.6958,149.3,149.26,6.6975]
[1745817092683,23.66,149.31,149.23,10.22281026]
[1745817093085,30.3554,149.31,149.24,4.0514]
[1745817093390,30.3554,149.31,149.27,6.6968]
[1745817094187,6.6958,149.3,149.27,6.6968]
[1745817094382,23.66,149.31,149.25,6.6978]
[1745817094584,10.22281026,149.3,149.25,6.6978]
[1745817094781,23.66,149.31,149.24,23.66]
[1745817094986,23.66,149.31,149.27,6.6967]
[1745817095285,30.3554,149.31,149.27,6.6967]
[1745817095987,30.3554,149.31,149.26,6.6975]
[1745817096186,6.6958,149.3,149.24,23.66]
[1745817096788,30.3553,149.31,149.24,23.66]
[1745817097087,30.3553,149.31,149.26,6.6975]
[1745817098183,23.66,149.31,149.25,12.21431026]
[1745817098384,23.66,149.31,149.26,4.0735]
[1745817098584,23.66,149.31,149.28,6.6963]
[1745817099184,506.16,149.34,149.29,6.6961]
[1745817099383,506.16,149.34,149.27,10.22281026]
[1745817099384,6.6944,149.33,149.27,10.22281026]
[1745817099589,33.88281026,149.34,149.27,10.22281026]